bitfinex-derivatives/quotes_BTCF0:USTF0_20230102
["timestamp","ask_amount","ask_price","bid_price","bid_amount"]
[1672630531369,0.3007,16613.0,16612.0,0.1606]
[1672630533886,0.7511,16614.0,16612.0,0.1606]
[1672630534095,0.3007,16613.0,16612.0,0.1606]
[1672630538710,0.7511,16614.0,16612.0,0.1606]
[1672630538934,0.3007,16613.0,16612.0,0.1606]
[1672630543238,0.3007,16613.0,16612.0,1.28678789]
[1672630544086,0.7511,16614.0,16612.0,1.28678789]
[1672630544296,0.7511,16614.0,16613.0,0.6]
[1672630544510,1.0518,16614.0,16613.0,0.6]
[1672630544822,0.7511,16614.0,16613.0,0.6]
[1672630545028,1.0518,16614.0,16613.0,0.6]
[1672630545979,1.0518,16614.0,16613.0,0.611]
[1672630547866,1.0518,16614.0,16613.0,0.61085401]
[1672630559533,1.0518,16614.0,16613.0,1.7370419]
[1672630559740,0.7511,16614.0,16613.0,1.7370419]
[1672630559954,1.0518,16614.0,16613.0,1.7370419]
[1672630565723,0.7511,16614.0,16613.0,1.7370419]
[1672630565941,1.0518,16614.0,16613.0,1.7370419]
[1672630568048,0.7511,16614.0,16613.0,1.7370419]
[1672630568257,1.0518,16614.0,16613.0,1.7370419]
[1672630568782,1.0518,16614.0,16613.0,1.13718789]
[1672630570881,0.7511,16614.0,16613.0,1.13718789]
[1672630571090,1.0518,16614.0,16613.0,1.13718789]
[1672630571509,0.7511,16614.0,16613.0,1.13718789]
[1672630571709,1.0518,16614.0,16613.0,1.13718789]
[1672630575615,0.7511,16614.0,16613.0,1.13718789]
[1672630575822,1.0518,16614.0,16613.0,1.13718789]
[1672630581603,0.7511,16614.0,16613.0,1.13718789]
[1672630581812,1.0518,16614.0,16613.0,1.13718789]
[1672630583079,0.7511,16614.0,16613.0,1.13718789]
[1672630583288,1.0518,16614.0,16613.0,1.13718789]
[1672630584751,0.7511,16614.0,16613.0,1.13718789]
[1672630584961,1.0518,16614.0,16613.0,1.13718789]
[1672630586012,0.7511,16614.0,16613.0,1.13718789]
[1672630586222,1.0518,16614.0,16613.0,1.13718789]
[1672630588233,0.7511,16614.0,16613.0,1.13718789]
[1672630588755,1.0518,16614.0,16613.0,1.13718789]
[1672630589590,0.7511,16614.0,16613.0,1.13718789]
[1672630590322,1.0518,16614.0,16613.0,1.13718789]
[1672630596426,1.0518,16614.0,16613.0,1.13704994]
[1672630596642,0.7511,16614.0,16613.0,1.13704994]
[1672630596850,1.0518,16614.0,16613.0,1.13704994]
[1672630597160,0.7511,16614.0,16613.0,1.13704994]
[1672630597372,1.0518,16614.0,16613.0,1.13704994]
[1672630597794,0.7511,16614.0,16613.0,1.13704994]
[1672630598004,1.0518,16614.0,16613.0,1.13704994]
[1672630598426,0.7511,16614.0,16613.0,1.13704994]
[1672630598741,1.0518,16614.0,16613.0,1.13704994]
[1672630598959,0.7511,16614.0,16613.0,1.13704994]
[1672630599165,1.0518,16614.0,16613.0,1.13704994]
[1672630600428,0.7511,16614.0,16613.0,1.13704994]
[1672630600640,1.0518,16614.0,16613.0,1.13704994]
[1672630604628,0.7511,16614.0,16613.0,1.13704994]
[1672630604839,1.0518,16614.0,16613.0,1.13704994]
[1672630610846,0.7511,16614.0,16613.0,1.13704994]
[1672630611040,1.0518,16614.0,16613.0,1.13704994]
[1672630615990,0.7511,16614.0,16613.0,1.13704994]
[1672630616200,1.0518,16614.0,16613.0,1.13704994]
[1672630625348,0.7511,16614.0,16613.0,1.13704994]
[1672630625562,1.0518,16614.0,16613.0,1.13704994]
[1672630628072,0.7511,16614.0,16613.0,1.13704994]
[1672630628283,1.0518,16614.0,16613.0,1.13704994]
[1672630629654,0.7511,16614.0,16613.0,1.13704994]
[1672630629869,1.0518,16614.0,16613.0,1.13704994]
[1672630644385,1.0505,16614.0,16613.0,1.13704994]
[1672630649533,1.0505,16614.0,16613.0,1.13686013]
[1672630650058,1.0505,16614.0,16613.0,1.12618789]
[1672630650270,1.0505,16614.0,16613.0,1.13718789]
[1672630651848,1.0518,16614.0,16613.0,1.13718789]
[1672630658357,0.4518,16614.0,16613.0,1.13718789]
[1672630659843,0.3007,16614.0,16613.0,1.28808789]
[1672630662885,0.1511,16615.0,16614.0,0.6]
[1672630663086,0.4518,16615.0,16614.0,0.6]
[1672630663831,0.1511,16615.0,16614.0,0.6]
[1672630664043,0.4518,16615.0,16614.0,0.611]
[1672630670968,0.1511,16615.0,16614.0,0.611]
[1672630671190,0.4518,16615.0,16614.0,0.611]
[1672630672245,0.4518,16615.0,16614.0,1.73718789]
[1672630674330,0.4509,16615.0,16614.0,1.73718789]
[1672630675595,0.1502,16615.0,16614.0,1.73718789]
[1672630675809,0.4509,16615.0,16614.0,1.73718789]
[1672630681388,0.3007,16615.0,16614.0,1.88828789]
[1672630681599,0.3007,16617.0,16614.0,2.03918789]
[1672630681810,0.3007,16615.0,16614.0,1.88808789]
[1672630682011,0.3007,16615.0,16614.0,2.03868789]
[1672630682224,0.3007,16615.0,16614.0,2.64098789]
[1672630682860,0.3007,16615.0,16614.0,2.49038789]
[1672630688320,0.3007,16615.0,16614.0,2.48938789]
[1672630690223,0.3007,16616.0,16614.0,2.48938789]
[1672630690433,0.3007,16616.0,16615.0,0.1511]
[1672630691900,0.3007,16616.0,16615.0,0.1621]
[1672630693058,0.1511,16618.0,16615.0,0.1621]
[1672630693269,0.3007,16617.0,16616.0,0.3]
[1672630693898,0.1511,16618.0,16616.0,0.3]
[1672630694109,0.3007,16617.0,16616.0,0.3]
[1672630694422,0.3007,16617.0,16616.0,0.4621]
[1672630694628,0.3007,16617.0,16616.0,0.4511]
[1672630694847,0.3007,16617.0,16616.0,0.4621]
[1672630696105,0.1503,16618.0,16616.0,0.4621]
[1672630696316,0.3007,16617.0,16616.0,0.4621]
[1672630696639,0.1503,16618.0,16616.0,0.4621]
[1672630696845,0.3007,16617.0,16616.0,0.4511]
[1672630697165,0.3007,16617.0,16616.0,0.4621]
[1672630700420,0.1503,16618.0,16616.0,0.4621]
[1672630700643,0.3007,16617.0,16616.0,0.4621]
[1672630700963,0.3007,16617.0,16616.0,0.46192463]
[1672630704429,0.3007,16617.0,16616.0,0.31082463]
[1672630704629,0.3007,16617.0,16616.0,1.43701252]
[1672630705579,0.1511,16618.0,16616.0,1.43701252]
[1672630705791,0.3007,16617.0,16616.0,1.43701252]
[1672630711248,0.4518,16617.0,16616.0,1.43701252]
[1672630714408,0.3007,16617.0,16616.0,1.58811252]
[1672630716825,0.1511,16618.0,16616.0,1.58811252]
[1672630717041,0.3007,16617.0,16616.0,1.58811252]
[1672630730583,0.3007,16617.0,16616.0,5.35811252]
[1672630731647,0.3007,16617.0,16616.0,5.35701252]
[1672630736576,0.7511,16619.0,16616.0,5.35701252]
[1672630736795,0.3007,16618.0,16617.0,0.1511]
[1672630737748,0.3007,16618.0,16617.0,0.1621]
[1672630742057,0.3007,16618.0,16617.0,0.1607]
[1672630743106,1.0504,16619.0,16618.0,0.6]
[1672630744373,0.9007,16619.0,16618.0,0.7619]
[1672630744788,0.3007,16619.0,16618.0,0.7619]
[1672630746162,0.3007,16619.0,16618.0,0.76176032]
[1672630746384,1.0518,16621.0,16618.0,0.76166032]
[1672630746692,0.3007,16621.0,16620.0,0.1511]
[1672630747318,0.3007,16623.0,16620.0,0.903]
[1672630747547,0.9007,16623.0,16622.0,0.15]
[1672630748611,0.9007,16623.0,16622.0,0.161]
[1672630750271,0.3007,16623.0,16622.0,0.161]
[1672630754587,0.4518,16623.0,16622.0,0.011]
[1672630755019,0.5,16622.0,16618.0,0.75076032]
[1672630755214,0.6505,16622.0,16620.0,0.5]
[1672630755424,0.4518,16621.0,16620.0,0.5]
[1672630755634,0.4518,16621.0,16618.0,1.35306032]
[1672630755882,0.3007,16619.0,16618.0,1.35306032]
[1672630756060,0.3007,16619.0,16618.0,0.7532]
[1672630756381,0.3007,16619.0,16618.0,0.01]
[1672630756382,0.4505,16619.0,16618.0,0.01]
[1672630756903,0.4585,16619.0,16618.0,0.61]
[1672630760686,0.3087,16619.0,16618.0,0.7611]
[1672630764454,0.3087,16619.0,16618.0,0.76]
[1672630769361,0.3087,16619.0,16618.0,1.88618789]
[1672630772018,0.3087,16619.0,16618.0,1.73618789]
[1672630784415,0.3087,16619.0,16618.0,1.88728789]
[1672630784619,0.008,16619.0,16618.0,1.88728789]
[1672630784829,0.3087,16619.0,16618.0,1.88728789]
[1672630787559,0.3087,16619.0,16618.0,2.48958789]
[1672630787771,0.3087,16619.0,16618.0,2.33848789]
[1672630787976,0.3087,16619.0,16618.0,2.48958789]
[1672630788619,0.008,16619.0,16618.0,2.48958789]
[1672630805120,0.008,16619.0,16618.0,2.48950385]
[1672630810050,0.00789892,16619.0,16618.0,2.48950385]
[1672630814156,0.00789892,16619.0,16618.0,2.79020385]
[1672630814362,0.00789892,16619.0,16618.0,2.94000385]
[1672630816892,0.00789892,16619.0,16618.0,2.63930385]
[1672630817100,0.00789892,16619.0,16618.0,2.94000385]
[1672630822458,0.00789892,16619.0,16618.0,2.63930385]
[1672630822674,0.00789892,16619.0,16618.0,2.94000385]
[1672630826885,0.00789892,16619.0,16618.0,3.0752348]
[1672630828041,0.00789892,16619.0,16618.0,2.7745348]
[1672630831510,0.00789892,16619.0,16618.0,6.5445348]
[1672630833496,0.00789892,16619.0,16618.0,6.40930385]
[1672630836562,0.00789892,16619.0,16618.0,6.49935208]
[1672630837820,0.00789892,16619.0,16618.0,6.40930385]
[1672630839921,0.00789892,16619.0,16618.0,6.49935208]
[1672630841081,0.00789892,16619.0,16618.0,6.5445348]
[1672630842555,0.00789892,16619.0,16618.0,6.40930385]
[1672630843387,0.00789892,16619.0,16618.0,6.4993699]
[1672630844331,0.00789892,16619.0,16618.0,6.40930385]
[1672630844754,0.00789892,16619.0,16618.0,6.499394]
[1672630844965,0.00789892,16619.0,16618.0,6.40930385]
[1672630846117,0.00789892,16619.0,16618.0,6.5445348]
[1672630848540,0.00789892,16619.0,16618.0,6.49939962]
[1672630850739,0.00789892,16619.0,16618.0,6.40930385]
[1672630854517,0.30859892,16619.0,16618.0,6.25950385]
[1672630858514,0.30859892,16619.0,16618.0,6.2593494]
[1672630865131,0.00789892,16619.0,16618.0,6.2593494]
[1672630880378,0.00789892,16619.0,16618.0,6.2591494]
[1672630881317,0.60789892,16619.0,16618.0,6.2591494]
[1672630882166,0.60789892,16619.0,16618.0,5.6568494]
[1672630884475,0.75899892,16619.0,16618.0,5.5059494]
[1672630888686,1.05969892,16619.0,16618.0,5.5059494]
[1672630896041,0.45969892,16619.0,16618.0,5.5059494]
[1672630904033,0.15899892,16619.0,16618.0,5.5059494]
[1672630904342,0.00789892,16619.0,16618.0,5.5059494]
[1672630904548,0.30859892,16619.0,16618.0,5.5059494]
[1672630905077,0.00789892,16619.0,16618.0,5.5059494]
[1672630911804,0.00789892,16619.0,16618.0,5.6556494]
[1672630912850,0.00789892,16619.0,16618.0,5.65549506]
[1672630914535,0.30859892,16619.0,16618.0,5.65669506]
[1672630919053,0.00789892,16619.0,16618.0,5.65669506]
[1672630926202,0.60789892,16619.0,16618.0,5.65669506]
[1672630927675,0.00789892,16619.0,16618.0,5.65669506]
[1672630927994,0.30859892,16619.0,16618.0,5.65669506]
[1672630944504,0.30859892,16619.0,16618.0,5.65689506]
[1672630953742,0.00789892,16619.0,16618.0,5.65689506]
[1672630954693,0.2077496,16619.0,16618.0,5.65689506]
[1672630955334,0.0077496,16619.0,16618.0,5.65689506]
[1672630956806,0.3084496,16619.0,16618.0,5.65689506]
[1672630957954,0.0077496,16619.0,16618.0,5.65689506]
[1672630959122,0.3084496,16619.0,16618.0,5.65689506]
[1672630964153,0.0077496,16619.0,16618.0,5.65689506]
[1672630964575,0.3084496,16619.0,16618.0,5.65689506]
[1672630965944,0.0077496,16619.0,16618.0,5.65689506]
[1672630966264,0.3084496,16619.0,16618.0,5.65689506]
[1672630966477,0.0077496,16619.0,16618.0,5.65689506]
[1672630967215,0.3084496,16619.0,16618.0,5.65689506]
[1672630968893,0.0077496,16619.0,16618.0,5.65689506]
[1672630969104,0.3084496,16619.0,16618.0,5.65689506]
[1672630973831,0.0077496,16619.0,16618.0,5.65689506]
[1672630974151,0.3084496,16619.0,16618.0,5.65689506]
[1672630974990,0.0077496,16619.0,16618.0,5.65689506]
[1672630975401,0.3084496,16619.0,16618.0,5.65689506]
[1672630979191,0.0077496,16619.0,16618.0,5.65689506]
[1672630979399,0.3084496,16619.0,16618.0,5.65689506]
[1672630984655,0.0077496,16619.0,16618.0,5.65689506]
[1672630985067,0.3084496,16619.0,16618.0,5.65689506]
[1672630989180,0.0077496,16619.0,16618.0,5.65689506]
[1672630989490,0.3084496,16619.0,16618.0,5.65689506]
[1672630991386,0.0077496,16619.0,16618.0,5.65689506]
[1672630991595,0.3084496,16619.0,16618.0,5.65689506]
[1672630997786,0.0077496,16619.0,16618.0,5.65689506]
[1672630997995,0.3084496,16619.0,16618.0,5.65689506]
[1672630998413,0.0077496,16619.0,16618.0,5.65689506]
[1672630998628,0.3084496,16619.0,16618.0,5.65689506]
[1672631002101,0.3084496,16619.0,16618.0,5.65678779]
[1672631012807,0.0077496,16619.0,16618.0,5.65678779]
[1672631013022,0.3084496,16619.0,16618.0,5.65678779]
[1672631020271,0.0077496,16619.0,16618.0,5.65678779]
[1672631020487,0.3084496,16619.0,16618.0,5.65678779]
[1672631022584,0.0077496,16619.0,16618.0,5.65678779]
[1672631022801,0.3084496,16619.0,16618.0,5.65678779]
[1672631023742,0.0077496,16619.0,16618.0,5.65678779]
[1672631023956,0.3084496,16619.0,16618.0,5.65678779]
[1672631032056,0.0077496,16619.0,16618.0,5.65678779]
[1672631042666,0.0077496,16619.0,16618.0,5.50568779]
[1672631042881,0.0077496,16619.0,16618.0,5.65678779]
[1672631044460,0.0077496,16619.0,16618.0,5.65648779]
[1672631046039,0.00755531,16619.0,16618.0,5.65648779]
[1672631054342,0.00755531,16619.0,16618.0,5.50568779]
[1672631054550,0.00755531,16619.0,16618.0,5.65678779]
[1672631067263,0.40755531,16619.0,16618.0,5.65678779]
[1672631068009,0.00755531,16619.0,16618.0,5.65678779]
[1672631070204,0.00755531,16619.0,16618.0,5.74688356]
[1672631071058,0.00755531,16619.0,16618.0,5.65678779]
[1672631072105,0.20755531,16619.0,16618.0,5.65678779]
[1672631072421,0.20755531,16619.0,16618.0,5.74691381]
[1672631073988,0.20755531,16619.0,16618.0,5.65678779]
[1672631074407,0.00755531,16619.0,16618.0,5.65678779]
[1672631076828,0.00755531,16619.0,16618.0,5.74691381]
[1672631078616,0.00755531,16619.0,16618.0,5.65678779]
[1672631078825,0.00755531,16619.0,16618.0,5.74691381]
[1672631079031,0.00755531,16619.0,16618.0,5.65678779]
[1672631079250,0.20755531,16619.0,16618.0,5.65678779]
[1672631081981,0.00755531,16619.0,16618.0,5.65678779]
[1672631086073,0.30755531,16619.0,16618.0,5.65678779]
[1672631086932,0.00755531,16619.0,16618.0,5.65678779]
[1672631088716,0.60825531,16619.0,16618.0,5.65678779]
[1672631088925,0.30755531,16619.0,16618.0,5.65678779]
[1672631089140,0.60825531,16619.0,16618.0,5.65678779]
[1672631089555,0.30755531,16619.0,16618.0,5.65678779]
[1672631090081,0.30825531,16619.0,16618.0,5.65678779]
[1672631094910,0.00755531,16619.0,16618.0,5.65678779]
[1672631095338,0.30825531,16619.0,16618.0,5.65678779]
[1672631095754,0.00755531,16619.0,16618.0,5.65678779]
[1672631095966,0.30825531,16619.0,16618.0,5.65678779]
[1672631100701,0.30825531,16619.0,16618.0,5.65659395]
[1672631121829,0.00755531,16619.0,16618.0,5.65659395]
[1672631122141,0.30825531,16619.0,16618.0,5.65659395]
[1672631125190,0.00755531,16619.0,16618.0,5.65659395]
[1672631125391,0.30825531,16619.0,16618.0,5.65659395]
[1672631125921,0.00755531,16619.0,16618.0,5.65659395]
[1672631126239,0.30825531,16619.0,16618.0,5.65659395]
[1672631126449,0.00755531,16619.0,16618.0,5.65659395]
[1672631126652,0.30825531,16619.0,16618.0,5.65659395]
[1672631127385,0.30825531,16619.0,16618.0,1.88659395]
[1672631127597,0.45935531,16619.0,16618.0,1.73549395]
[1672631127810,1.66415531,16619.0,16618.0,1.73549395]
[1672631128026,1.66415531,16619.0,16618.0,1.13618789]
[1672631129279,0.75875531,16619.0,16618.0,1.13618789]
[1672631141898,0.45805531,16619.0,16618.0,1.13618789]
[1672631142102,0.75875531,16619.0,16618.0,1.13618789]
[1672631142521,0.45805531,16619.0,16618.0,1.13618789]
[1672631142733,0.75875531,16619.0,16618.0,1.13618789]
[1672631143468,0.45805531,16619.0,16618.0,1.13618789]
[1672631143884,0.75875531,16619.0,16618.0,1.13618789]
[1672631146626,0.75875531,16619.0,16618.0,1.13610249]
[1672631159245,0.45805531,16619.0,16618.0,1.13610249]
[1672631159658,0.75875531,16619.0,16618.0,1.13610249]
[1672631164391,0.60785531,16619.0,16618.0,1.13610249]
[1672631164592,0.30715531,16619.0,16618.0,1.13610249]
[1672631164803,0.60785531,16619.0,16618.0,1.13610249]
[1672631165010,0.30715531,16619.0,16618.0,1.13610249]
[1672631165232,0.60785531,16619.0,16618.0,1.13610249]
[1672631165442,0.30715531,16619.0,16618.0,1.13610249]
[1672631165765,0.60785531,16619.0,16618.0,1.13610249]
[1672631167744,0.30715531,16619.0,16618.0,1.13610249]
[1672631167957,0.60785531,16619.0,16618.0,1.13610249]
[1672631168382,0.30715531,16619.0,16618.0,1.13610249]
[1672631168584,0.60785531,16619.0,16618.0,1.13610249]
[1672631173525,0.30715531,16619.0,16618.0,1.13610249]
[1672631173734,0.60785531,16619.0,16618.0,1.13610249]
[1672631174362,0.30715531,16619.0,16618.0,1.13610249]
[1672631174574,0.60785531,16619.0,16618.0,1.13610249]
[1672631177632,0.30715531,16619.0,16618.0,1.13610249]
[1672631177959,0.60785531,16619.0,16618.0,1.13610249]
[1672631183298,0.30715531,16619.0,16618.0,1.13610249]
[1672631183514,0.60785531,16619.0,16618.0,1.13610249]
[1672631184767,0.30715531,16619.0,16618.0,1.13610249]
[1672631184978,0.60785531,16619.0,16618.0,1.13610249]
[1672631185188,0.30715531,16619.0,16618.0,1.13610249]
[1672631185815,0.60785531,16619.0,16618.0,1.13610249]
[1672631187190,0.30715531,16619.0,16618.0,1.13610249]
[1672631187499,0.60785531,16619.0,16618.0,1.13610249]
[1672631190550,0.30715531,16619.0,16618.0,1.13610249]
[1672631190762,0.60785531,16619.0,16618.0,1.13610249]
[1672631191389,0.30715531,16619.0,16618.0,1.13610249]
[1672631191705,0.60785531,16619.0,16618.0,1.13610249]
[1672631192125,0.30715531,16619.0,16618.0,1.13610249]
[1672631192335,0.60785531,16619.0,16618.0,1.13610249]
[1672631192537,0.30715531,16619.0,16618.0,1.13610249]
[1672631192752,0.60785531,16619.0,16618.0,1.13610249]
[1672631193380,0.30715531,16619.0,16618.0,1.13610249]
[1672631193591,0.60785531,16619.0,16618.0,1.13610249]
[1672631194328,0.60785531,16619.0,16618.0,1.13587233]
[1672631194856,0.30715531,16619.0,16618.0,1.13587233]
[1672631195063,0.60785531,16619.0,16618.0,1.13587233]
[1672631200438,0.45785531,16619.0,16618.0,1.13587233]
[1672631201273,0.4503,16619.0,16618.0,1.12618789]
[1672631201481,0.4603,16619.0,16618.0,1.13418789]
[1672631203374,0.3107,16619.0,16618.0,1.28528789]
[1672631204012,0.01,16619.0,16618.0,1.28528789]
[1672631206328,0.01,16619.0,16618.0,1.88758789]
[1672631206569,0.3007,16623.0,16618.0,2.18958789]
[1672631206765,0.3007,16623.0,16622.0,0.1508]
[1672631206969,0.3007,16623.0,16622.0,0.6508]
[1672631208025,0.3017,16623.0,16622.0,0.6618]
[1672631212155,0.001,16623.0,16622.0,0.6618]
[1672631214446,0.001,16623.0,16622.0,0.6621]
[1672631224010,0.001,16623.0,16622.0,4.4321]
[1672631235979,0.001,16623.0,16622.0,4.5827]
[1672631237980,0.001,16623.0,16622.0,5.70888789]
[1672631244398,0.001,16623.0,16622.0,5.55828789]
[1672631245553,0.00078774,16623.0,16622.0,6.16058789]
[1672631250380,0.9007,16625.0,16623.0,0.6]
[1672631250595,0.9007,16625.0,16624.0,0.1496]
[1672631251233,1.051,16625.0,16623.0,4.5211]
[1672631251552,1.051,16625.0,16624.0,0.011]
[1672631251975,1.051,16625.0,16623.0,4.5211]
[1672631252187,1.051,16625.0,16623.0,4.5321]
[1672631252604,1.051,16625.0,16624.0,0.011]
[1672631253238,0.9007,16625.0,16624.0,0.1621]
[1672631253755,0.9007,16625.0,16624.0,0.1511]
[1672631254393,0.9007,16625.0,16624.0,0.1621]
[1672631261533,0.3007,16625.0,16624.0,0.1621]
[1672631261743,0.5007,16625.0,16624.0,0.1621]
[1672631261954,0.9007,16625.0,16624.0,0.1621]
[1672631263860,0.3007,16625.0,16624.0,0.1621]
[1672631264386,0.3007,16625.0,16624.0,0.1619]
[1672631269535,0.1497,16626.0,16624.0,0.85432602]
[1672631269746,0.1497,16626.0,16625.0,0.6511]
[1672631269747,0.6,16626.0,16625.0,0.6511]
[1672631270793,0.3007,16627.0,16625.0,1.2534]
[1672631271006,0.3007,16627.0,16626.0,0.1496]
[1672631271848,0.3007,16627.0,16626.0,0.1606]
[1672631275743,0.3007,16627.0,16626.0,0.1496]
[1672631275946,0.3007,16627.0,16626.0,0.1606]
[1672631280248,0.3007,16627.0,16626.0,0.3115]
[1672631280466,0.3007,16627.0,16626.0,0.9138]
[1672631280994,0.6011,16629.0,16626.0,0.9138]
[1672631281205,0.6,16628.0,16627.0,0.6]
[1672631281414,0.6,16628.0,16627.0,0.7508]
[1672631282561,0.3007,16629.0,16627.0,0.7508]
[1672631282776,0.3007,16629.0,16628.0,0.1499]
[1672631283411,0.3007,16629.0,16627.0,0.6]
[1672631283412,0.451,16629.0,16627.0,0.7511]
[1672631283830,0.6007,16628.0,16627.0,0.7621]
[1672631284036,0.3007,16628.0,16627.0,0.7621]
[1672631284777,0.3007,16628.0,16627.0,0.7511]
[1672631284981,0.3007,16628.0,16627.0,1.3644]
[1672631286779,0.3007,16628.0,16627.0,2.49058789]
[1672631287623,0.3007,16628.0,16627.0,2.48958789]
[1672631290251,0.4518,16629.0,16627.0,2.48958789]
[1672631291194,0.4518,16629.0,16627.0,2.47958789]
[1672631291406,0.4518,16629.0,16627.0,2.48958789]
[1672631294561,0.3007,16629.0,16628.0,0.1499]
[1672631296131,0.3007,16629.0,16628.0,0.1609]
[1672631296766,0.3007,16629.0,16628.0,0.16081124]
[1672631298234,0.00015975,16630.0,16628.0,0.9153]
[1672631298449,0.60015975,16630.0,16629.0,0.6511]
[1672631298665,0.00015975,16630.0,16629.0,0.6511]
[1672631299709,0.00015975,16630.0,16629.0,0.6621]
[1672631304652,0.00015975,16630.0,16629.0,1.2644]
[1672631313794,0.50015975,16630.0,16629.0,1.2644]
[1672631314538,0.65125975,16630.0,16629.0,1.1133]
[1672631318323,0.65125975,16630.0,16629.0,0.511]
[1672631319258,0.65125975,16630.0,16629.0,1.63718789]
[1672631319997,0.95195975,16630.0,16629.0,1.63718789]
[1672631320936,0.65125975,16630.0,16629.0,1.63718789]
[1672631321152,0.95195975,16630.0,16629.0,1.63718789]
[1672631324515,0.80085975,16630.0,16629.0,1.78828789]
[1672631324730,0.30085975,16630.0,16629.0,1.78828789]
[1672631332818,0.00015975,16630.0,16629.0,1.78828789]
[1672631334812,0.30085975,16630.0,16629.0,1.78828789]
[1672631341751,0.00015975,16630.0,16629.0,1.78828789]
[1672631349422,0.00015975,16630.0,16629.0,1.78812133]
[1672631354354,0.20015975,16630.0,16629.0,1.78812133]
[1672631354567,0.35035975,16630.0,16629.0,1.63702133]
[1672631358905,0.65105975,16630.0,16629.0,1.63702133]
[1672631361862,0.35035975,16630.0,16629.0,1.63702133]
[1672631362067,0.65105975,16630.0,16629.0,1.63702133]
[1672631364579,0.50085975,16630.0,16629.0,1.78702133]
[1672631370756,0.20015975,16630.0,16629.0,1.78702133]
[1672631370974,0.50085975,16630.0,16629.0,1.78702133]
[1672631372760,0.50085975,16630.0,16629.0,1.78812133]
[1672631373601,0.20015975,16630.0,16629.0,1.78812133]
[1672631373805,0.50085975,16630.0,16629.0,1.78812133]
[1672631374761,0.30085975,16630.0,16629.0,1.78812133]
[1672631389484,0.00015975,16630.0,16629.0,1.78812133]
[1672631389796,0.30085975,16630.0,16629.0,1.78812133]
[1672631394096,0.30085975,16630.0,16629.0,1.78800666]
[1672631398314,0.00015975,16630.0,16629.0,1.78800666]
[1672631398525,0.30085975,16630.0,16629.0,1.78800666]
[1672631399890,0.00015975,16630.0,16629.0,1.78800666]
[1672631400094,0.30085975,16630.0,16629.0,1.78800666]
[1672631414505,0.30085975,16630.0,16629.0,1.78680666]
[1672631418928,0.00015975,16630.0,16629.0,1.78680666]
[1672631419242,0.30085975,16630.0,16629.0,1.78680666]
[1672631419655,0.00015975,16630.0,16629.0,1.78680666]
[1672631419866,0.30085975,16630.0,16629.0,1.78680666]
[1672631433535,0.00015975,16630.0,16629.0,1.78680666]
[1672631433745,0.30085975,16630.0,16629.0,1.78680666]
[1672631434478,0.30085975,16630.0,16629.0,1.78800666]
[1672631444475,0.30085975,16630.0,16629.0,1.78690666]
[1672631448057,0.30085975,16630.0,16629.0,1.78666966]
[1672631449836,0.45195975,16630.0,16629.0,1.13718789]
[1672631455310,0.45172822,16630.0,16629.0,1.13718789]
[1672631459615,0.15102822,16630.0,16629.0,1.13718789]
[1672631459831,0.45172822,16630.0,16629.0,1.13718789]
[1672631460467,0.15102822,16630.0,16629.0,1.13718789]
[1672631460676,0.45172822,16630.0,16629.0,1.13718789]
[1672631464557,0.4517,16630.0,16629.0,1.13718789]
[1672631466027,0.6014,16630.0,16629.0,1.13718789]
[1672631480949,0.3007,16630.0,16629.0,1.13718789]
[1672631481155,0.6014,16630.0,16629.0,1.13718789]
[1672631486101,0.3007,16630.0,16629.0,1.13718789]
[1672631486517,0.6014,16630.0,16629.0,1.13718789]
[1672631496829,0.3007,16630.0,16629.0,1.13718789]
[1672631497040,0.6014,16630.0,16629.0,1.13718789]
[1672631497773,0.3007,16630.0,16629.0,1.13718789]
[1672631498193,0.6014,16630.0,16629.0,1.13718789]
[1672631498401,0.3007,16630.0,16629.0,1.13718789]
[1672631498615,0.6014,16630.0,16629.0,1.13718789]
[1672631500500,0.3007,16630.0,16629.0,1.13718789]
[1672631500823,0.6014,16630.0,16629.0,1.13718789]
[1672631504500,0.4518,16630.0,16629.0,1.13718789]
[1672631509329,0.4518,16630.0,16629.0,1.1370235]
[1672631510072,0.1511,16630.0,16629.0,1.1370235]
[1672631510384,0.4518,16630.0,16629.0,1.1370235]
[1672631528671,0.1511,16630.0,16629.0,1.1370235]
[1672631528883,0.4518,16630.0,16629.0,1.1370235]
[1672631529098,0.1511,16630.0,16629.0,1.1370235]
[1672631529406,0.4518,16630.0,16629.0,1.1370235]
[1672631531721,0.1511,16630.0,16629.0,1.1370235]
[1672631531928,0.4518,16630.0,16629.0,1.1370235]
[1672631538974,0.1511,16630.0,16629.0,1.1370235]
[1672631539187,0.4518,16630.0,16629.0,1.1370235]
[1672631541915,0.3007,16630.0,16629.0,1.1370235]
[1672631544429,0.3007,16630.0,16629.0,1.2870235]
[1672631554409,0.4518,16630.0,16629.0,1.1370235]
[1672631555790,0.4518,16630.0,16629.0,1.13678967]
[1672631562402,0.1511,16630.0,16629.0,1.13678967]
[1672631562617,0.4518,16630.0,16629.0,1.13678967]
[1672631565454,0.1511,16630.0,16629.0,1.13678967]
[1672631570509,0.3007,16631.0,16629.0,1.28788967]
[1672631570717,0.3007,16631.0,16630.0,0.6511]
[1672631571762,0.3007,16631.0,16630.0,0.6621]
[1672631573134,0.1497,16632.0,16631.0,0.5]
[1672631573552,0.4504,16632.0,16631.0,0.5]
[1672631574917,0.4504,16632.0,16631.0,0.511]
[1672631577021,0.1497,16632.0,16631.0,0.511]
[1672631577346,0.4504,16632.0,16631.0,0.511]
[1672631589643,0.45018418,16632.0,16631.0,0.511]
[1672631593745,0.3007,16632.0,16631.0,1.78678789]
[1672631594163,0.3007,16632.0,16631.0,2.38908789]
[1672631594481,0.3007,16632.0,16631.0,2.39058789]
[1672631597324,0.3007,16632.0,16631.0,2.37958789]
[1672631597534,0.3007,16632.0,16631.0,2.39058789]
[1672631604471,0.3007,16632.0,16631.0,2.38918789]
[1672631609414,0.3,16633.0,16631.0,2.38918789]
[1672631609625,0.3007,16632.0,16631.0,2.23948789]
[1672631609838,0.3007,16632.0,16631.0,2.39058789]
[1672631610153,0.089,16637.0,16633.0,0.6023]
[1672631610373,0.05867503,16642.0,16636.0,1.8007]
[1672631610565,0.43790634,16643.0,16641.0,1.3507]
[1672631610776,0.5726983,16650.0,16641.0,1.3507]
[1672631611095,0.5726983,16650.0,16649.0,5.5877]
[1672631611303,0.3,16661.0,16649.0,5.5896]
[1672631611614,0.6007,16665.0,16655.0,0.3007]